bitfinex/quotes_BTCUSD_20251221
["timestamp","ask_amount","ask_price","bid_price","bid_amount"]
[1766321072749,0.21107,88726.0,88725.0,0.00564]
[1766321074261,0.21107,88726.0,88725.0,0.005091]
[1766321074703,0.11637,88730.0,88725.0,0.005091]
[1766321075708,0.32387,88730.0,88725.0,0.005091]
[1766321076029,0.2075,88741.0,88725.0,0.005091]
[1766321076181,0.2075,88737.0,88725.0,0.005091]
[1766321076381,0.12084,88734.0,88725.0,0.005091]
[1766321076682,0.2075,88731.0,88725.0,0.005091]
[1766321076885,0.32834,88730.0,88725.0,0.005091]
[1766321078302,0.12084,88730.0,88725.0,0.005091]
[1766321078504,0.2075,88729.0,88725.0,0.005091]
[1766321080141,0.2075,88729.0,88718.0,0.09446853]
[1766321080299,0.206951,88729.0,88719.0,0.00564]
[1766321081273,0.12094,88735.0,88719.0,0.10312]
[1766321081929,0.12094,88735.0,88719.0,0.00564]
[1766321082461,0.32834,88734.0,88719.0,0.00564]
[1766321083025,0.32834,88734.0,88719.0,0.10312]
[1766321083246,0.32844,88735.0,88718.0,0.09446853]
[1766321083472,0.32844,88735.0,88719.0,0.10312]
[1766321083693,0.2075,88734.0,88719.0,0.10312]
[1766321085147,0.2075,88730.0,88720.0,0.09446853]
[1766321085370,0.2075,88728.0,88720.0,0.09446853]
[1766321086300,0.2075,88728.0,88721.0,0.00564]
[1766321087668,0.2075,88728.0,88722.0,0.00564]
[1766321087872,0.12084,88727.0,88715.0,0.09456853]
[1766321088065,0.12084,88727.0,88716.0,0.00564]
[1766321088413,0.0001,88735.0,88717.0,0.00564]
[1766321088414,0.12084,88723.0,88717.0,0.00564]
[1766321088565,0.0001,88735.0,88717.0,0.00564]
[1766321088566,0.32834,88721.0,88717.0,0.00564]
[1766321089086,0.2075,88721.0,88717.0,0.00564]
[1766321090431,0.2075,88721.0,88717.0,0.00509]
[1766321090575,0.32834,88721.0,88715.0,0.0001]
[1766321090779,0.32834,88721.0,88716.0,0.00564]
[1766321090975,0.32834,88721.0,88717.0,0.00564]
[1766321092002,0.12084,88729.0,88717.0,0.00564]
[1766321092208,0.12084,88725.0,88717.0,0.00564]
[1766321092462,0.2075,88722.0,88717.0,0.00564]
[1766321092642,0.12084,88719.0,88715.0,0.00564]
[1766321092804,0.2075,88724.0,88719.0,0.000549]
[1766321093424,0.0001,88722.0,88713.0,0.00564]
[1766321094945,0.32834,88724.0,88713.0,0.00564]
[1766321095155,0.2075,88723.0,88713.0,0.00564]
[1766321095714,0.2075,88725.0,88704.0,0.09758]
[1766321095897,0.00564,88728.0,88704.0,0.09758]
[1766321095898,0.12084,88722.0,88709.0,0.09446853]
[1766321096097,0.12084,88718.0,88709.0,0.09446853]
[1766321096382,0.32834,88718.0,88709.0,0.09446853]
[1766321096499,0.12084,88726.0,88710.0,0.10010853]
[1766321096697,0.2075,88723.0,88710.0,0.10010853]
[1766321096911,0.12084,88720.0,88710.0,0.10010853]
[1766321097117,0.12084,88720.0,88695.0,0.06067704]
[1766321097118,0.2075,88691.0,88660.0,0.03387371]
[1766321097321,0.2075,88691.0,88630.0,0.09546852]
[1766321097322,0.09446853,88694.0,88657.0,0.09768]
[1766321097323,0.00500682,88675.0,88657.0,0.09768]
[1766321097517,0.00455782,88675.0,88657.0,0.09768]
[1766321097939,0.2075,88674.0,88657.0,0.09768]
[1766321098162,0.00455782,88675.0,88658.0,0.00568]
[1766321098345,0.21205782,88675.0,88659.0,0.00568]
[1766321098742,0.2075,88674.0,88659.0,0.00568]
[1766321098943,0.09446853,88666.0,88659.0,0.00568]
[1766321099206,0.00455782,88675.0,88660.0,0.00568]
[1766321099339,0.32834,88693.0,88661.0,0.01353469]
[1766321099561,0.32834,88693.0,88660.0,0.00568]
[1766321099562,0.15591495,88694.0,88662.0,0.09768]
[1766321099766,0.15591495,88694.0,88664.0,0.09768]
[1766321099767,0.32834,88693.0,88664.0,0.09768]
[1766321099994,0.32834,88693.0,88666.0,0.09768]
[1766321100221,0.15591495,88694.0,88657.0,0.00035915]
[1766321100222,0.09446853,88677.0,88657.0,0.00035915]
[1766321100349,0.09446853,88694.0,88660.0,0.09768]
[1766321100553,0.32834,88693.0,88660.0,0.09768]
[1766321100752,0.07900477,88707.0,88659.0,0.09446853]
[1766321100753,0.12084,88706.0,88662.0,0.09768]
[1766321101000,0.2075,88700.0,88664.0,0.09768]
[1766321101458,0.00568,88701.0,88666.0,0.09768]
[1766321101709,0.09446853,88705.0,88674.0,0.09768]
[1766321101888,0.09446853,88705.0,88676.0,0.09768]
[1766321102088,0.2075,88705.0,88676.0,0.09768]
[1766321102408,0.2075,88705.0,88678.0,0.09768]
[1766321102568,0.2075,88705.0,88680.0,0.09768]
[1766321102770,0.2075,88705.0,88682.0,0.09768]
[1766321102993,0.2075,88705.0,88704.0,0.00030653]
[1766321103198,0.2075,88705.0,88698.0,0.00568]
[1766321103996,0.2075,88705.0,88653.0,0.03387964]
[1766321103997,0.2075,88703.0,88661.0,0.09768]
[1766321104199,0.2075,88684.0,88663.0,0.09768]
[1766321104602,0.09446853,88689.0,88663.0,0.09768]
[1766321105009,0.00568,88696.0,88663.0,0.09768]
[1766321105336,0.00568,88696.0,88665.0,0.09768]
[1766321105510,0.11949,88696.0,88665.0,0.09768]
[1766321106142,0.11381,88689.0,88666.0,0.0508]
[1766321106678,0.11381,88685.0,88666.0,0.0508]
[1766321106856,0.11381,88685.0,88664.0,0.09768]
[1766321106857,0.22563,88684.0,88664.0,0.09768]
[1766321107079,0.22563,88680.0,88665.0,0.0508]
[1766321107276,0.09446853,88690.0,88661.0,0.00035915]
[1766321107277,0.00055,88665.0,88661.0,0.00035915]
[1766321107465,0.00055,88665.0,88662.0,0.00568]
[1766321107663,0.33944,88667.0,88662.0,0.00568]
[1766321107951,0.33944,88665.0,88661.0,0.00603915]
[1766321108148,0.33944,88665.0,88661.0,0.00035915]
[1766321108541,0.000359,88661.0,88641.0,0.09768]
[1766321108747,0.11381,88659.0,88642.0,0.0508]
[1766321109105,0.11381,88659.0,88636.0,0.09768]
[1766321109265,0.22563,88655.0,88636.0,0.09768]
[1766321109476,0.22563,88654.0,88637.0,0.05084]
[1766321109851,0.00035832,88661.0,88654.0,0.000549]
[1766321110249,0.22563,88658.0,88647.0,0.00568]
[1766321110451,0.22563,88654.0,88647.0,0.005131]
[1766321110689,0.11381,88653.0,88647.0,0.005131]
[1766321110898,0.00035832,88661.0,88648.0,0.09768]
[1766321111094,0.00035832,88661.0,88647.0,0.005131]
[1766321111095,3.2e-07,88661.0,88650.0,0.09768]
[1766321111335,3.2e-07,88661.0,88651.0,0.00568]
[1766321111688,0.33944032,88661.0,88641.0,0.09446853]
[1766321111901,0.33944032,88661.0,88626.0,0.09768]
[1766321112117,0.11381,88660.0,88638.0,0.04516]
[1766321112318,0.22563,88657.0,88639.0,0.10336]
[1766321112523,0.09446853,88660.0,88640.0,0.00568]
[1766321112524,0.33944,88655.0,88640.0,0.00568]
[1766321112926,3.2e-07,88661.0,88641.0,0.09768]
[1766321113105,3.2e-07,88661.0,88655.0,0.000191]
[1766321113321,3.2e-07,88661.0,88649.0,0.09768]
[1766321113529,3.2e-07,88661.0,88649.0,0.10336]
[1766321113730,3.2e-07,88661.0,88651.0,0.09768]
[1766321114733,3.2e-07,88661.0,88649.0,0.00568]
[1766321114936,3.2e-07,88661.0,88654.0,0.00153329]
[1766321115135,3.2e-07,88661.0,88611.0,0.01354233]
[1766321115136,0.000908,88654.0,88653.0,0.00568]
[1766321115393,3.2e-07,88661.0,88653.0,0.00568]
[1766321115572,0.11381,88659.0,88651.0,0.00568]
[1766321115765,3.2e-07,88661.0,88647.0,0.10336]
[1766321115986,3.2e-07,88661.0,88649.0,0.09768]
[1766321117177,3.2e-07,88661.0,88647.0,0.00568]
[1766321117377,3.2e-07,88661.0,88648.0,0.09768]
[1766321118182,3.2e-07,88661.0,88650.0,0.09768]
[1766321118409,3.2e-07,88661.0,88652.0,0.09768]
[1766321120258,3.2e-07,88661.0,88647.0,0.00568]
[1766321120445,3.2e-07,88661.0,88660.0,0.00134922]
[1766321120646,3.2e-07,88661.0,88660.0,0.00702922]
[1766321123881,0.22563,88688.0,88661.0,0.09768]
[1766321124016,0.0241844,88687.0,88676.0,0.09446853]
[1766321124210,0.22563,88688.0,88676.0,0.09446853]
[1766321124596,0.11381,88688.0,88673.0,0.00568]
[1766321124842,0.00568,88690.0,88674.0,0.00568]
[1766321125051,0.22692,88685.0,88674.0,0.00568]
[1766321125287,0.35172,88683.0,88674.0,0.00568]
[1766321125417,0.22692,88682.0,88674.0,0.00568]
[1766321126067,0.2326,88690.0,88676.0,0.09446853]
[1766321126427,0.03042796,88697.0,88682.0,0.000549]
[1766321126428,0.00568,88697.0,88682.0,0.000549]
[1766321126635,0.2326,88697.0,88680.0,0.09768]
[1766321127531,0.2326,88697.0,88681.0,0.11689164]
[1766321127532,0.22692,88697.0,88681.0,0.11689164]
[1766321127744,0.22692,88697.0,88681.0,0.10336]
[1766321127890,0.22692,88696.0,88681.0,0.00568]
[1766321129176,0.50568,88700.0,88682.0,0.09768]
[1766321129349,0.11908,88700.0,88696.0,0.001099]
[1766321129522,0.00568,88707.0,88696.0,0.001099]
[1766321129523,0.1248,88705.0,88696.0,0.001099]
[1766321129912,0.22692,88698.0,88689.0,0.00568]
[1766321130120,0.1248,88694.0,88689.0,0.00568]
[1766321130295,0.1248,88694.0,88687.0,0.00568]
[1766321130522,0.1248,88694.0,88687.0,0.00468851]
[1766321131472,0.22692,88695.0,88687.0,0.00468851]
[1766321133525,0.00568,88708.0,88691.0,0.09446853]
[1766321134568,0.1248,88712.0,88691.0,0.09446853]
[1766321134771,0.00568,88713.0,88696.0,0.00024529]
[1766321135009,0.00568,88713.0,88697.0,0.00568]
[1766321135216,0.1248,88721.0,88705.0,0.09446853]
[1766321135217,0.00568,88721.0,88705.0,0.09446853]
[1766321135422,0.00568,88721.0,88713.0,0.000549]
[1766321135590,0.00568,88721.0,88706.0,0.00568]
[1766321135591,0.12097,88721.0,88706.0,0.00568]
[1766321135797,0.11529,88720.0,88706.0,0.00568]
[1766321136735,0.24323,88721.0,88706.0,0.01920783]
[1766321136736,0.00568,88721.0,88706.0,0.01920783]
[1766321136915,0.00568,88721.0,88706.0,0.00568]
[1766321137115,0.00568,88728.0,88706.0,0.00568]
[1766321138274,0.00568,88728.0,88707.0,0.01352768]
[1766321138572,0.00568,88728.0,88706.0,0.00568]
[1766321139008,0.5,88730.0,88720.0,0.09446853]
[1766321139201,0.5,88730.0,88720.0,0.10014853]
[1766321139202,0.49322,88730.0,88720.0,0.10014853]
[1766321139929,0.24322,88730.0,88720.0,0.10014853]
[1766321140095,0.0001,88735.0,88730.0,0.000549]
[1766321140663,0.0001,88735.0,88720.0,0.10025604]
[1766321140900,0.0001,88735.0,88721.0,0.01352554]
[1766321141081,0.0001,88735.0,88720.0,0.10025604]
[1766321142581,0.0001,88735.0,88721.0,0.01352554]
[1766321142774,0.00568,88740.0,88720.0,0.10025604]
[1766321142981,0.03396491,88758.0,88720.0,0.10025604]
[1766321142982,0.00568,88752.0,88740.0,0.000449]
[1766321143294,0.24323,88755.0,88738.0,0.00568]
[1766321144334,0.23992,88755.0,88738.0,0.00568]
[1766321145106,0.11529,88754.0,88738.0,0.00558]
[1766321146256,0.11529,88754.0,88728.0,0.04512]
[1766321146589,0.23755,88749.0,88734.0,0.09446853]
[1766321146743,0.11529,88746.0,88734.0,0.09446853]
[1766321147933,0.23755,88747.0,88734.0,0.09446853]
[1766321148129,0.35284,88747.0,88734.0,0.09446853]
[1766321149345,0.11529,88746.0,88734.0,0.09446853]
[1766321151877,0.00568,88749.0,88726.0,0.00568]
[1766321151878,0.23755,88741.0,88726.0,0.00568]
[1766321152091,0.23755,88737.0,88726.0,0.00568]
[1766321152333,0.11529,88734.0,88726.0,0.00568]
[1766321152555,0.06186786,88758.0,88696.0,0.03410814]
[1766321152556,0.11529,88728.0,88702.0,0.04512]
[1766321152778,0.11529,88724.0,88706.0,0.00568]
[1766321153643,0.11529,88724.0,88710.0,0.0001]
[1766321154279,0.11499,88724.0,88710.0,0.0001]
[1766321157339,0.23755,88725.0,88710.0,0.0001]
[1766321158317,0.35284,88725.0,88710.0,0.0001]
[1766321158991,0.11529,88726.0,88710.0,0.0001]
[1766321159201,0.23755,88724.0,88710.0,0.0001]
[1766321159420,0.11529,88723.0,88710.0,0.0001]
[1766321159837,0.11529,88721.0,88710.0,0.0001]
[1766321160307,0.11529,88720.0,88710.0,0.0001]
[1766321160874,0.11529,88718.0,88710.0,0.0001]
[1766321161114,0.11529,88712.0,88696.0,0.00024529]
[1766321161313,0.11529,88710.0,88700.0,0.00568]
[1766321161515,0.23755,88711.0,88700.0,0.00568]
[1766321162197,0.0001,88730.0,88711.0,0.000549]
[1766321162394,0.0001,88730.0,88706.0,0.09446853]
[1766321162395,0.0001,88730.0,88712.0,0.00568]
[1766321162689,0.11529,88733.0,88720.0,0.09446853]
[1766321162825,0.10830166,88740.0,88712.0,0.00568]
[1766321162826,0.23755,88729.0,88712.0,0.00568]
[1766321163064,0.35284,88729.0,88712.0,0.00568]
[1766321163772,0.35284,88729.0,88696.0,0.0002938]
[1766321163773,0.11529,88724.0,88696.0,0.0002938]
[1766321164092,0.11529,88718.0,88701.0,0.00568]
[1766321164246,0.11529,88714.0,88701.0,0.00568]
[1766321164432,0.11529,88713.0,88701.0,0.00568]
[1766321165276,0.11529,88713.0,88696.0,0.0002938]
[1766321165277,0.11332,88708.0,88696.0,3.8e-06]
[1766321165482,0.09446853,88710.0,88696.0,3.8e-06]
[1766321165483,0.25242,88703.0,88696.0,3.8e-06]
[1766321165745,0.11332,88698.0,88696.0,3.8e-06]
[1766321168812,0.36574,88698.0,88696.0,3.8e-06]
[1766321169016,0.37142,88697.0,88696.0,3.8e-06]
[1766321170516,0.370871,88697.0,88696.0,3.8e-06]
[1766321171683,0.370871,88697.0,88678.0,0.09127233]
[1766321171855,0.370871,88697.0,88678.0,0.09131276]
[1766321175683,0.0001,88706.0,88678.0,0.09131276]
[1766321176051,0.00568,88705.0,88678.0,0.09131276]
[1766321176994,0.00568,88705.0,88692.0,0.09446853]
[1766321177197,0.0001,88706.0,88692.0,0.09446853]
[1766321177513,0.00568,88707.0,88692.0,0.09446853]
[1766321181187,0.36574,88726.0,88706.0,0.09446853]
[1766321181445,0.36574,88726.0,88704.0,0.00568]
[1766321181446,0.02996376,88725.0,88704.0,0.00568]
[1766321181655,0.02996376,88725.0,88692.0,0.09446853]
[1766321181656,0.00568,88725.0,88707.0,0.09446853]
[1766321182325,0.02997426,88725.0,88707.0,0.09446853]
[1766321182528,0.25242,88723.0,88707.0,0.09446853]
[1766321182730,0.11332,88722.0,88707.0,0.09446853]
[1766321183560,0.0001,88717.0,88707.0,0.09446853]
[1766321185353,0.000549,88707.0,88697.0,0.0001]
[1766321185548,0.000549,88707.0,88698.0,0.0508]
[1766321185886,0.0001,88717.0,88698.0,0.0508]
[1766321186585,0.0001,88717.0,88706.0,0.09446853]
[1766321186790,0.0001,88717.0,88707.0,0.00568]
[1766321188797,0.0001,88717.0,88707.0,0.00449778]
[1766321189641,0.25235,88733.0,88707.0,0.00449778]
[1766321189838,0.04055329,88732.0,88707.0,0.00449778]
[1766321190000,0.02999839,88732.0,88707.0,0.00449778]
[1766321190417,0.11783,88731.0,88707.0,0.00449778]
[1766321192053,0.11783,88731.0,88707.0,0.00363107]
[1766321192480,0.00568,88732.0,88707.0,0.00363107]
[1766321192692,0.11783,88729.0,88707.0,0.00363107]
[1766321196723,0.25235,88730.0,88707.0,0.00363107]
[1766321197115,0.25235,88730.0,88708.0,0.01352752]
[1766321197318,0.25235,88730.0,88721.0,0.09446853]
[1766321197719,0.12433,88732.0,88721.0,0.09446853]
[1766321197939,0.23741,88737.0,88721.0,0.09446853]
[1766321197940,0.00568,88733.0,88721.0,0.09446853]
[1766321198490,0.00568,88733.0,88721.0,0.09436853]
[1766321199123,0.23741,88732.0,88721.0,0.09436853]
[1766321200468,0.00568,88733.0,88722.0,0.00568]
[1766321202753,0.23741,88741.0,88722.0,0.00568]
[1766321202979,0.00568,88739.0,88722.0,0.00568]
[1766321204734,0.00568,88739.0,88722.0,0.01920539]
[1766321206437,0.00568,88739.0,88722.0,0.00568]
[1766321208853,0.11865,88737.0,88722.0,0.005131]
[1766321209027,0.35606,88737.0,88722.0,0.005131]
[1766321209211,0.11865,88736.0,88723.0,0.00568]
[1766321209409,0.11865,88736.0,88723.0,0.00513]
[1766321209617,0.11865,88734.0,88723.0,0.00513]
[1766321209931,0.11865,88733.0,88723.0,0.00513]
[1766321211206,0.11865,88733.0,88724.0,0.00568]
[1766321211449,0.11865,88733.0,88706.0,0.09446853]
[1766321211625,0.23741,88727.0,88707.0,0.0508]
[1766321211825,0.11865,88725.0,88706.0,0.09446853]
[1766321212007,0.11865,88725.0,88708.0,0.00568]
[1766321213163,0.23741,88724.0,88708.0,0.00568]
[1766321213656,0.23741,88724.0,88713.0,0.0001]
[1766321217448,0.23741,88723.0,88713.0,0.0001]
[1766321217794,0.23741,88718.0,88696.0,0.06077537]
[1766321218021,0.0001,88733.0,88697.0,0.00592043]
[1766321218022,0.11865,88711.0,88697.0,0.00592043]
[1766321218221,0.11865,88708.0,88697.0,0.00024043]
[1766321219622,0.11865,88707.0,88697.0,0.00024043]
[1766321221053,0.12433,88707.0,88697.0,0.00024043]
[1766321221234,0.35606,88704.0,88697.0,0.00024043]
[1766321221595,0.23741,88704.0,88697.0,0.00024043]
[1766321221964,0.00568,88707.0,88697.0,0.00024043]
[1766321223484,0.00568,88707.0,88697.0,4.3e-07]
[1766321223711,0.11865,88703.0,88697.0,4.3e-07]
[1766321223912,0.23741,88700.0,88697.0,4.3e-07]
[1766321224085,0.11865,88698.0,88697.0,4.3e-07]
[1766321224330,0.11865,88704.0,88697.0,4.3e-07]
[1766321224539,0.11865,88702.0,88697.0,4.3e-07]
[1766321225220,0.23741,88703.0,88697.0,4.3e-07]
[1766321225863,0.06340485,88719.0,88697.0,4.3e-07]
[1766321225864,0.12266,88710.0,88697.0,4.3e-07]
[1766321226094,0.25792,88709.0,88698.0,0.09446853]
[1766321226396,0.12266,88707.0,88698.0,0.09446853]
[1766321226548,0.00568,88712.0,88697.0,4.3e-07]
[1766321226549,0.38058,88706.0,88697.0,4.3e-07]
[1766321226746,0.12266,88705.0,88697.0,4.3e-07]
[1766321235491,0.25792,88706.0,88697.0,4.3e-07]
[1766321236194,0.38058,88706.0,88697.0,4.3e-07]
[1766321236736,0.12266,88705.0,88697.0,4.3e-07]
[1766321237555,0.25792,88706.0,88697.0,4.3e-07]
[1766321237856,0.38058,88706.0,88697.0,4.3e-07]
[1766321238329,0.00578,88707.0,88699.0,0.09446853]
[1766321238535,0.00568,88712.0,88699.0,0.09446853]
[1766321239560,0.00568,88716.0,88699.0,0.09446853]
[1766321239796,0.25792,88720.0,88699.0,0.09446853]
[1766321239994,0.0607679,88746.0,88699.0,0.09446853]
[1766321239995,0.25792,88726.0,88700.0,0.01352874]
[1766321240194,0.00568,88725.0,88701.0,0.00568]
[1766321240717,0.00568,88725.0,88713.0,0.09446853]
[1766321241818,0.00568,88730.0,88713.0,0.09446853]
[1766321242514,0.12834,88730.0,88713.0,0.09446853]
[1766321243494,0.0001,88717.0,88713.0,0.09446853]
[1766321244556,0.0001,88717.0,88701.0,0.00568]
[1766321245845,0.0001,88717.0,88699.0,0.09446853]
[1766321246000,0.0001,88717.0,88702.0,0.0508]
[1766321248245,0.0001,88717.0,88713.0,0.09446853]
[1766321248651,0.2997789,88733.0,88714.0,0.01352661]
[1766321248652,0.0001,88733.0,88714.0,0.01352661]
[1766321249021,0.0001,88733.0,88713.0,0.09446853]
[1766321258459,0.0001,88727.0,88713.0,0.09446853]
[1766321262061,0.0001,88727.0,88714.0,0.01352661]
[1766321263508,0.0001,88727.0,88713.0,0.09446853]
[1766321265635,0.0001,88727.0,88714.0,0.00568]
[1766321268389,0.02432873,88743.0,88714.0,0.00568]
[1766321268579,0.24989,88747.0,88733.0,0.09446853]
[1766321268580,0.02433809,88746.0,88733.0,0.09446853]
[1766321268777,0.02433809,88746.0,88734.0,0.00568]
[1766321268986,0.36653,88747.0,88734.0,0.00568]
[1766321269186,0.11664,88746.0,88734.0,0.00568]
[1766321269774,0.11664,88745.0,88734.0,0.00568]
[1766321269957,0.24999758,88746.0,88734.0,0.00568]
[1766321270372,0.02435103,88745.0,88734.0,0.00568]
[1766321271706,0.24999758,88746.0,88734.0,0.00568]
[1766321273210,0.36663758,88746.0,88734.0,0.00568]
[1766321273358,0.0001,88743.0,88734.0,0.00568]
[1766321275900,0.11664,88743.0,88734.0,0.00168]
[1766321276115,0.10674,88743.0,88734.0,0.00168]
[1766321277586,0.10344,88743.0,88734.0,0.00168]
[1766321278187,0.24989,88743.0,88734.0,0.00168]
[1766321279584,0.11664,88742.0,88734.0,0.00168]
[1766321279811,0.24989,88741.0,88734.0,0.00168]
[1766321280009,0.11664,88740.0,88734.0,0.00168]
[1766321280183,0.11664,88738.0,88734.0,0.00168]
[1766321280389,0.11664,88738.0,88724.0,0.00568]
[1766321280573,0.11664,88737.0,88724.0,0.00568]
[1766321281383,0.11664,88737.0,88727.0,0.09446853]
[1766321282046,0.11664,88735.0,88715.0,0.09446853]
[1766321282228,0.24989,88730.0,88704.0,0.10589537]
[1766321282431,0.24989,88724.0,88704.0,0.10589537]
[1766321282623,0.24989,88718.0,88704.0,0.04512]
[1766321282805,0.11664,88717.0,88704.0,0.04512]
[1766321283766,0.24989,88716.0,88704.0,0.04512]
[1766321283933,0.24989,88710.0,88699.0,0.09446853]
[1766321285302,0.11664,88711.0,88699.0,0.09446853]
[1766321285506,0.00010756,88716.0,88711.0,0.00055]
[1766321285776,0.25255,88723.0,88711.0,0.00055]
[1766321286015,0.11721,88722.0,88707.0,0.00568]
[1766321286780,0.11721,88722.0,88707.0,0.00239]
[1766321288264,5.256e-05,88723.0,88713.0,0.09446853]
[1766321288495,5.256e-05,88723.0,88722.0,0.000999]
[1766321288928,5.256e-05,88723.0,88714.0,0.01352661]
[1766321289308,5.256e-05,88723.0,88713.0,0.09446853]
[1766321290540,5.6e-07,88723.0,88713.0,0.09446853]
[1766321296147,5.6e-07,88723.0,88714.0,0.00568]
[1766321302227,5.6e-07,88723.0,88715.0,0.0508]
[1766321307293,0.00568,88742.0,88715.0,0.0508]
[1766321307500,0.00568,88742.0,88730.0,0.09446853]
[1766321307700,0.00568,88742.0,88730.0,0.10014853]
[1766321319442,0.11632,88739.0,88730.0,0.005528]
[1766321319783,0.11632,88738.0,88730.0,0.005528]
[1766321324759,0.00568,88742.0,88730.0,0.005528]
[1766321324760,0.11632,88736.0,88730.0,0.00410347]
[1766321325031,0.1163847,88736.0,88730.0,0.00410347]
[1766321325727,6.47e-05,88736.0,88730.0,0.00410347]
[1766321326416,0.2235,88734.0,88730.0,3.47e-06]
[1766321327099,0.11632,88733.0,88730.0,3.47e-06]
[1766321327714,0.2235,88734.0,88724.0,0.00564]
[1766321330279,0.2235,88734.0,88727.0,0.09446853]
[1766321332153,6.47e-05,88736.0,88727.0,0.09446853]
[1766321332389,0.00568,88742.0,88736.0,5.93e-05]
[1766321332563,0.00357585,88742.0,88736.0,5.93e-05]
[1766321332764,0.00357585,88742.0,88741.0,0.09446853]
[1766321334708,0.0001,88743.0,88741.0,0.09446853]
[1766321335979,0.0001,88743.0,88731.0,0.00564]
[1766321338667,0.11632,88742.0,88731.0,0.00564]
[1766321338876,0.2235,88742.0,88731.0,0.00564]
[1766321339071,0.33982,88742.0,88731.0,0.00564]
[1766321339616,0.11632,88741.0,88731.0,0.00564]
[1766321339940,0.11632,88741.0,88731.0,0.00244]
[1766321343089,0.0001,88743.0,88723.0,0.0001]
[1766321343090,0.00049,88731.0,88723.0,0.0001]
[1766321343300,0.00049,88731.0,88724.0,0.00564]
[1766321343498,0.11632,88733.0,88723.0,0.0001647]
[1766321343670,0.2235,88733.0,88725.0,0.00564]
[1766321344025,0.33982,88738.0,88725.0,0.00564]
[1766321344865,0.23056,88737.0,88725.0,0.00564]
[1766321345074,0.11659,88736.0,88725.0,0.00564]
[1766321347400,0.11659,88736.0,88727.0,0.09446853]
[1766321353773,0.34715,88736.0,88727.0,0.09446853]
[1766321356475,0.23056,88736.0,88727.0,0.09446853]
[1766321356753,0.11659,88735.0,88727.0,0.09446853]
[1766321358389,0.23056,88736.0,88727.0,0.09446853]
[1766321358590,0.23001,88736.0,88727.0,0.09446853]
[1766321360313,0.11659,88735.0,88727.0,0.09446853]
[1766321365254,0.11659,88735.0,88723.0,0.0001647]
[1766321365397,0.000549,88727.0,88723.0,0.0001647]
[1766321365816,0.23142,88734.0,88723.0,0.0001647]
[1766321366062,0.12406,88732.0,88723.0,0.0001647]
[1766321366204,0.23142,88731.0,88723.0,4.7e-06]
[1766321366404,0.0001,88741.0,88695.0,0.1461]
[1766321366405,0.23142,88720.0,88713.0,0.09456853]
[1766321366605,0.0001593,88723.0,88713.0,0.09456853]
[1766321366606,0.23142,88718.0,88713.0,0.09462109]
[1766321366972,0.03386954,88733.0,88687.0,0.0001]
[1766321366973,0.12406,88712.0,88687.0,0.0001]
[1766321367099,0.231805,88713.0,88699.0,0.09457609]
[1766321367100,0.12406,88710.0,88699.0,0.09457609]
[1766321367295,0.12406,88706.0,88699.0,0.09457609]
[1766321367505,0.35548,88706.0,88699.0,0.09457609]
[1766321367708,0.12406,88705.0,88699.0,0.09457609]
[1766321368221,0.23142,88704.0,88702.0,0.09446853]
[1766321368421,0.12406,88703.0,88687.0,0.0001]
[1766321368678,0.12406,88703.0,88699.0,0.09446853]
[1766321371152,0.12406,88708.0,88699.0,0.09446853]
[1766321371546,0.23142,88713.0,88699.0,0.09446853]
[1766321371749,0.03387478,88719.0,88700.0,0.01352874]
[1766321371946,0.03387478,88719.0,88699.0,0.09446853]
[1766321371947,0.12406,88729.0,88716.0,0.09446853]
[1766321372375,0.06107767,88734.0,88716.0,0.09446853]
[1766321372376,0.12406,88728.0,88716.0,0.09446853]
[1766321372702,0.12406,88727.0,88716.0,0.09446853]
[1766321372850,0.23142,88726.0,88716.0,0.09446853]
[1766321373210,0.000544,88716.0,88699.0,0.09446853]
[1766321373347,0.23142,88711.0,88699.0,0.09446853]
[1766321373704,0.35548,88708.0,88699.0,0.09446853]
[1766321378084,0.12341,88723.0,88699.0,0.09446853]
[1766321378291,0.12341,88719.0,88699.0,0.09446853]
[1766321378492,0.12341,88718.0,88709.0,0.0001]
[1766321379193,0.12341,88717.0,88709.0,0.0001]
[1766321380192,0.12341,88715.0,88699.0,0.09446853]
[1766321380622,0.12341,88713.0,88699.0,0.09446853]
[1766321380786,0.12341,88711.0,88699.0,0.09446853]
[1766321391065,0.12341,88711.0,88698.0,0.03387352]
[1766321391066,0.000994,88699.0,88698.0,0.03387352]
[1766321391219,0.33764,88702.0,88697.0,0.00024043]
[1766321391437,0.33764,88723.0,88702.0,0.000105]
[1766321391809,0.12341,88717.0,88698.0,0.09446853]
[1766321391976,0.03387535,88723.0,88698.0,0.09446853]
[1766321392383,0.21423,88720.0,88698.0,0.09446853]
[1766321392584,0.12341,88717.0,88698.0,0.09446853]
[1766321392783,0.12341,88715.0,88698.0,0.09446853]
[1766321393504,0.12341,88715.0,88699.0,0.0001]
[1766321393982,0.12341,88714.0,88699.0,0.0001]
[1766321394204,0.21423,88715.0,88699.0,0.0001]
[1766321394390,0.21423,88715.0,88699.0,0.0136289]
[1766321394597,0.12341,88718.0,88699.0,0.0136289]
[1766321395418,0.0001,88719.0,88699.0,0.0136289]
[1766321395650,0.0001,88719.0,88699.0,0.0001]
[1766321395802,0.21423,88715.0,88699.0,0.0001]
[1766321396011,0.12341,88713.0,88699.0,0.0001]
[1766321398348,0.21423,88714.0,88699.0,0.0001]
[1766321400452,0.21423,88714.0,88697.0,0.00024043]
[1766321400453,0.12341,88712.0,88697.0,0.00024043]
[1766321400658,0.21423,88707.0,88697.0,4.3e-07]
[1766321400854,0.12341,88705.0,88697.0,4.3e-07]
[1766321401200,0.21423,88717.0,88698.0,0.09446853]
[1766321401419,0.12341,88712.0,88698.0,0.09446853]
[1766321401620,0.12341,88710.0,88698.0,0.09446853]
[1766321401847,0.21423,88717.0,88698.0,0.09446853]
[1766321402091,0.12341,88715.0,88698.0,0.09446853]
[1766321402299,0.0001,88719.0,88699.0,0.0135289]
[1766321402668,0.24810329,88726.0,88719.0,0.0001]
[1766321403015,0.01056457,88725.0,88719.0,0.0001]